fUST/lending_fUST_20240928
["ID","MTS","AMOUNT","RATE_DAILY","PERIOD"]
[339359629,1727471467000,-1500.0,0.00022265,2]
[339359630,1727471467010,-2500.0,0.00022265,2]
[339359631,1727471467019,-283.6,0.00022271,2]
[339359632,1727471467030,-1320.25505481,0.000223,2]
[339359633,1727471467040,-177.897178,0.00022359,2]
[339359634,1727471467049,-186.364531,0.00022359,2]
[339359635,1727471467059,-2500.0,0.00022365,2]
[339359636,1727471467068,-302.42545213,0.0002244,2]
[339359637,1727471467078,-302.42545213,0.0002244,2]
[339359638,1727471467087,-500.0,0.00022465,2]
[339359639,1727471467096,-500.0,0.00022465,2]
[339359640,1727471467106,-615.87,0.00022465,2]
[339359641,1727471467115,-500.0,0.00022465,2]
[339359642,1727471467124,-500.0,0.00022465,2]
[339359643,1727471467133,-500.0,0.00022465,2]
[339359644,1727471467142,-500.0,0.00022465,2]
[339359645,1727471467155,-571.88,0.00022465,2]
[339359646,1727471467165,-579.52,0.00022465,2]
[339359647,1727471467175,-646.25,0.00022465,2]
[339359648,1727471467185,-816.38,0.00022465,2]
[339359649,1727471467194,-1558.73,0.00022465,2]
[339359650,1727471467204,-500.0,0.00022465,2]
[339359651,1727471467214,-709.61,0.00022465,2]
[339359652,1727471467223,-6692.1,0.00022465,2]
[339359653,1727471467233,-306.437442,0.000225,10]
[339359654,1727471467242,-160.0,0.00022539,3]
[339359655,1727471467251,-302.42545213,0.0002266,2]
[339359656,1727471467261,-302.42545213,0.0002266,2]
[339359657,1727471467270,-283.6,0.00022726,2]
[339359658,1727471467279,-177.897178,0.00022732,2]
[339359659,1727471467288,-186.364531,0.00022732,2]
[339359660,1727471467298,-500.0,0.00022739,2]
[339359661,1727471467307,-500.0,0.00022739,2]
[339359662,1727471467318,-615.87,0.00022739,2]
[339359663,1727471467421,-500.0,0.00022739,2]
[339359664,1727471467434,-473.83731195,0.00022739,2]
[339359665,1727471467444,-500.0,0.00022739,2]
[339359666,1727471467453,-500.0,0.00022739,2]
[339359667,1727471467462,-571.88,0.00022739,2]
[339359668,1727471467471,-579.52,0.00022739,2]
[339359669,1727471467482,-646.25,0.00022739,2]
[339359670,1727471467493,-816.38,0.00022739,2]
[339359671,1727471467504,-1558.73,0.00022739,2]
[339359672,1727471467514,-500.0,0.00022739,2]
[339359673,1727471467525,-709.61,0.00022739,2]
[339359674,1727471467536,-6692.1,0.00022739,2]
[339359675,1727471467547,-25866.70903851,0.0002276,2]
[339359676,1727471467556,-1416.1,0.0002276,2]
[339359677,1727471467565,-150.0,0.00022797,2]
[339359678,1727471467576,-150.0,0.00022797,2]
[339359679,1727471467586,-150.0,0.00022824,2]
[339359680,1727471467597,-150.0,0.00022824,2]
[339359681,1727471467606,-150.0,0.00022824,2]
[339359682,1727471467615,-525.0,0.00022824,2]
[339359683,1727471467627,-150.0,0.00022824,2]
[339359684,1727471467637,-1217.0,0.00022824,2]
[339359685,1727471467647,-200.0,0.00022829,3]
[339359686,1727471467657,-200.0,0.00022838,3]
[339359687,1727471467666,-302.42545213,0.0002288,2]
[339359688,1727471467676,-302.42545213,0.0002288,2]
[339359689,1727471467687,-159.0,0.000229,2]
[339359690,1727471467698,-200.0,0.00022919,3]
[339359691,1727471467708,-240.69202536,0.00023,2]
[339359692,1727471467719,-597021.81181201,0.00023,2]
[339359693,1727471467730,-1000.0,0.00023,120]
[339359694,1727471467739,-11049.8298721,0.00023,3]
[339359695,1727471467748,-1500.0,0.00023,2]
[339359696,1727471467757,-1500.0,0.00023,2]
[339359697,1727471467768,-1500.0,0.00023,2]
[339359698,1727471467778,-1500.0,0.00023,2]
[339359699,1727471467787,-1500.0,0.00023,2]
[339359700,1727471467797,-1500.0,0.00023,2]
[339359701,1727471467807,-1532.06,0.00023,2]
[339359702,1727471467816,-1500.0,0.00023,2]
[339359703,1727471467825,-1500.0,0.00023,2]
[339359704,1727471467835,-13294.8,0.00023,3]
[339359705,1727471467845,-200.0,0.00023,2]
[339359706,1727471467854,-200.0,0.00023,2]
[339359707,1727471467865,-500.0,0.00023013,2]
[339359708,1727471467874,-500.0,0.00023013,2]
[339359709,1727471467884,-615.87,0.00023013,2]
[339359710,1727471467893,-500.0,0.00023013,2]
[339359711,1727471467904,-500.0,0.00023013,2]
[339359712,1727471467913,-500.0,0.00023013,2]
[339359713,1727471467924,-571.88,0.00023013,2]
[339359714,1727471467935,-579.52,0.00023013,2]
[339359715,1727471467946,-646.25,0.00023013,2]
[339359716,1727471467958,-816.38,0.00023013,2]
[339359717,1727471467969,-1558.73,0.00023013,2]
[339359718,1727471467981,-500.0,0.00023013,2]
[339359719,1727471467993,-709.61,0.00023013,2]
[339359720,1727471468003,-6692.1,0.00023013,2]
[339359721,1727471468015,-194.0,0.0002308,8]
[339359722,1727471468027,-453.63817819,0.000231,4]
[339359723,1727471468038,-453.63817819,0.000231,4]
[339359724,1727471468050,-177.897178,0.00023104,2]
[339359725,1727471468059,-186.364531,0.00023104,2]
[339359726,1727471468070,-3000.0,0.00023153,2]
[339359727,1727471468079,-283.6,0.00023181,2]
[339359728,1727471468089,-1111.0,0.00023233,120]
[339359729,1727471468099,-500.0,0.00023253,2]
[339359730,1727471468109,-152.79482226,0.00023275,2]
[339359731,1727471468120,-500.0,0.00023287,2]
[339359732,1727471468131,-500.0,0.00023287,2]
[339359733,1727471468140,-500.0,0.00023287,2]
[339359734,1727471468150,-500.0,0.00023287,2]
[339359735,1727471468161,-500.0,0.00023287,2]
[339359736,1727471468171,-500.0,0.00023287,2]
[339359737,1727471468180,-500.0,0.00023287,2]
[339359738,1727471468191,-500.0,0.00023287,2]
[339359739,1727471468201,-500.0,0.00023287,2]
[339359740,1727471468211,-500.0,0.00023287,2]
[339359741,1727471468222,-500.0,0.00023287,2]
[339359742,1727471468232,-553.70719363,0.00023287,2]
[339359743,1727471468241,-462.54577052,0.00023287,2]
[339359744,1727471468251,-500.0,0.00023287,2]
[339359745,1727471468261,-615.87,0.00023287,2]
[339359746,1727471468270,-500.0,0.00023287,2]
[339359747,1727471468281,-500.0,0.00023287,2]
[339359748,1727471468293,-500.0,0.00023287,2]
[339359749,1727471468302,-571.88,0.00023287,2]
[339359750,1727471468311,-579.52,0.00023287,2]
[339359751,1727471468323,-646.25,0.00023287,2]
[339359752,1727471468334,-816.38,0.00023287,2]
[339359753,1727471468344,-1558.73,0.00023287,2]
[339359754,1727471468353,-500.0,0.00023287,2]
[339359755,1727471468365,-709.61,0.00023287,2]
[339359756,1727471468377,-6692.1,0.00023287,2]
[339359757,1727471468387,-500.0,0.00023288,2]
[339359758,1727471468397,-491.55029659,0.00023288,2]
[339359759,1727471468407,-500.0,0.00023288,2]
[339359760,1727471468416,-500.0,0.00023288,2]
[339359761,1727471468425,-500.0,0.00023288,2]
[339359762,1727471468436,-500.0,0.00023288,2]
[339359763,1727471468455,-500.0,0.00023288,2]
[339359764,1727471468467,-160.0,0.00023293,4]
[339359765,1727471468477,-453.63817819,0.0002332,4]
[339359766,1727471468487,-453.63817819,0.0002332,4]
[339359767,1727471468497,-3242.29077255,0.00023355,2]
[339359768,1727471468507,-500.0,0.00023356,2]
[339359769,1727471468517,-177.897178,0.00023477,2]
[339359770,1727471468527,-186.364531,0.00023477,2]
[339359771,1727471468538,-2681.9869176,0.000235,2]
[339359772,1727471468547,-1070.911271,0.00023532,2]
[339359773,1727471468557,-1369.052354,0.00023532,2]
[339359774,1727471468566,-204.536795,0.00023532,2]
[339359775,1727471468575,-204.036163,0.00023532,2]
[339359776,1727471468584,-186.269897,0.00023532,2]
[339359777,1727471468593,-202.019211,0.00023532,2]
[339359778,1727471468602,-535.455635,0.00023532,2]
[339359779,1727471468612,-1369.052354,0.00023532,2]
[339359780,1727471468621,-204.370776,0.00023532,2]
[339359781,1727471468630,-535.455636,0.00023532,2]
[339359782,1727471468641,-165.539165,0.00023532,2]
[339359783,1727471468652,-204.370777,0.00023532,2]
[339359784,1727471468661,-684.526177,0.00023532,2]
[339359785,1727471468671,-535.455636,0.00023532,2]
[339359786,1727471468683,-164.685227,0.00023532,2]
[339359787,1727471468692,-453.63817819,0.0002354,4]
[339359788,1727471468702,-453.63817819,0.0002354,4]
[339359789,1727471468711,-500.0,0.00023561,2]
[339359790,1727471468721,-615.87,0.00023561,2]
[339359791,1727471468731,-500.0,0.00023561,2]
[339359792,1727471468741,-500.0,0.00023561,2]
[339359793,1727471468750,-500.0,0.00023561,2]
[339359794,1727471468760,-571.88,0.00023561,2]
[339359795,1727471468770,-579.52,0.00023561,2]
[339359796,1727471468780,-646.25,0.00023561,2]
[339359797,1727471468791,-816.38,0.00023561,2]
[339359798,1727471468801,-1558.73,0.00023561,2]
[339359799,1727471468810,-500.0,0.00023561,2]
[339359800,1727471468821,-709.61,0.00023561,2]
[339359801,1727471468830,-6692.1,0.00023561,2]
[339359802,1727471468839,-283.6,0.00023636,2]
[339359803,1727471468852,-453.63817819,0.0002376,4]
[339359804,1727471468862,-453.63817819,0.0002376,4]
[339359805,1727471468871,-5880.42905253,0.000238,2]
[339359806,1727471468881,-1070.911271,0.00023826,2]
[339359807,1727471468890,-1369.052354,0.00023826,2]
[339359808,1727471468898,-204.036163,0.00023826,2]
[339359809,1727471468907,-186.269897,0.00023826,2]
[339359810,1727471468916,-535.455635,0.00023826,2]
[339359811,1727471468926,-1369.052354,0.00023826,2]
[339359812,1727471468935,-535.455636,0.00023826,2]
[339359813,1727471468944,-165.539165,0.00023826,2]
[339359814,1727471468954,-684.526177,0.00023826,2]
[339359815,1727471468964,-535.455636,0.00023826,2]
[339359816,1727471468974,-164.685227,0.00023826,2]
[339359817,1727471468983,-500.0,0.00023835,2]
[339359818,1727471468992,-615.87,0.00023835,2]
[339359819,1727471469002,-500.0,0.00023835,2]
[339359820,1727471469113,-500.0,0.00023835,2]
[339359821,1727471469123,-500.0,0.00023835,2]
[339359822,1727471469134,-571.88,0.00023835,2]
[339359823,1727471469145,-579.52,0.00023835,2]
[339359824,1727471469157,-646.25,0.00023835,2]
[339359825,1727471469166,-816.38,0.00023835,2]
[339359826,1727471469176,-1558.73,0.00023835,2]
[339359827,1727471469185,-500.0,0.00023835,2]
[339359828,1727471469196,-709.61,0.00023835,2]
[339359829,1727471469206,-6692.1,0.00023835,2]
[339359830,1727471469217,-453.63817819,0.0002398,4]
[339359831,1727471469230,-453.63817819,0.0002398,4]
[339359832,1727471469240,-2943.32232083,0.00024022,2]
[339359833,1727471469250,-209.1919512,0.00024039,2]
[339359834,1727471469260,-209.1919512,0.00024039,2]
[339359835,1727471469270,-209.1919512,0.00024039,2]
[339359836,1727471469281,-209.1919512,0.00024039,2]
[339359837,1727471469290,-160.0,0.00024046,5]
[339359838,1727471469299,-3500.0,0.00024077,2]
[339359839,1727471469308,-283.6,0.0002409,2]
[339359840,1727471469317,-500.0,0.00024109,2]
[339359841,1727471469326,-615.87,0.00024109,2]
[339359842,1727471469338,-500.0,0.00024109,2]
[339359843,1727471469349,-500.0,0.00024109,2]
[339359844,1727471469360,-500.0,0.00024109,2]
[339359845,1727471469377,-571.88,0.00024109,2]
[339359846,1727471469386,-579.52,0.00024109,2]
[339359847,1727471469396,-646.25,0.00024109,2]
[339359848,1727471469406,-816.38,0.00024109,2]
[339359849,1727471469416,-1558.73,0.00024109,2]
[339359850,1727471469425,-500.0,0.00024109,2]
[339359851,1727471469436,-709.61,0.00024109,2]
[339359852,1727471469447,-6692.1,0.00024109,2]
[339359853,1727471469456,-1070.911271,0.0002412,2]
[339359854,1727471469467,-1369.052354,0.0002412,2]
[339359855,1727471469478,-204.036163,0.0002412,2]
[339359856,1727471469488,-186.269897,0.0002412,2]
[339359857,1727471469498,-535.455635,0.0002412,2]
[339359858,1727471469509,-1369.052354,0.0002412,2]
[339359859,1727471469520,-535.455636,0.0002412,2]
[339359860,1727471469531,-165.539165,0.0002412,2]
[339359861,1727471469541,-684.526177,0.0002412,2]
[339359862,1727471469550,-535.455636,0.0002412,2]
[339359863,1727471469560,-164.685227,0.0002412,2]
[339359864,1727471469570,-201.0,0.00024255,2]
[339359865,1727471469581,-194.0,0.0002435,10]
[339359866,1727471469594,-500.0,0.00024383,2]
[339359867,1727471469603,-615.87,0.00024383,2]
[339359868,1727471469614,-500.0,0.00024383,2]
[339359869,1727471469624,-500.0,0.00024383,2]
[339359870,1727471469634,-500.0,0.00024383,2]
[339359871,1727471469645,-571.88,0.00024383,2]
[339359872,1727471469656,-579.52,0.00024383,2]
[339359873,1727471469667,-646.25,0.00024383,2]
[339359874,1727471469677,-816.38,0.00024383,2]
[339359875,1727471469687,-1558.73,0.00024383,2]
[339359876,1727471469698,-300.79766525,0.00024383,2]
[339359877,1727471469709,-709.61,0.00024383,2]
[339359878,1727471469719,-6692.1,0.00024383,2]
[339359879,1727471469729,-1070.911271,0.00024414,2]
[339359880,1727471469739,-1369.052354,0.00024414,2]
[339359881,1727471469749,-204.036163,0.00024414,2]
[339359882,1727471469759,-186.269897,0.00024414,2]
[339359883,1727471469768,-535.455635,0.00024414,2]
[339359884,1727471469780,-1369.052354,0.00024414,2]
[339359885,1727471469792,-535.455636,0.00024414,2]
[339359886,1727471469803,-165.539165,0.00024414,2]
[339359887,1727471469814,-684.526177,0.00024414,2]
[339359888,1727471469825,-535.455636,0.00024414,2]
[339359889,1727471469835,-164.685227,0.00024414,2]
[339359890,1727471469845,-500.0,0.00024452,2]
[339359891,1727471469856,-689.36847607,0.00024485,2]
[339359892,1727471469868,-250.0,0.000245,3]
[339359893,1727471469877,-500.10819463,0.000245,5]
[339359894,1727471469886,-283.6,0.00024545,2]
[339359895,1727471469896,-167.51612762,0.00024548,2]
[339359896,1727471469905,-500.0,0.00024657,2]
[339359897,1727471469914,-615.87,0.00024657,2]
[339359898,1727471469927,-500.0,0.00024657,2]
[339359899,1727471469936,-200.0,0.00024657,2]
[339359900,1727471469947,-200.0,0.00024657,2]
[339359901,1727471469958,-200.0,0.00024657,2]
[339359902,1727471469972,-200.0,0.00024657,2]
[339359903,1727471469981,-200.0,0.00024657,2]
[339359904,1727471469991,-200.0,0.00024657,2]
[339359905,1727471470000,-200.0,0.00024657,2]
[339359906,1727471470012,-200.0,0.00024657,2]
[339359907,1727471470023,-200.0,0.00024657,2]
[339359908,1727471470033,-200.0,0.00024657,2]
[339359909,1727471470044,-200.0,0.00024657,2]
[339359910,1727471470054,-200.0,0.00024657,2]
[339359911,1727471470064,-200.0,0.00024657,2]
[339359912,1727471470073,-200.0,0.00024657,2]
[339359913,1727471470083,-200.0,0.00024657,2]
[339359914,1727471470093,-227.25618387,0.00024657,2]
[339359915,1727471470103,-500.0,0.00024657,2]
[339359916,1727471470114,-500.0,0.00024657,2]
[339359917,1727471470123,-571.88,0.00024657,2]
[339359918,1727471470135,-579.52,0.00024657,2]
[339359919,1727471470144,-646.25,0.00024657,2]
[339359920,1727471470155,-816.38,0.00024657,2]
[339359921,1727471470166,-1558.73,0.00024657,2]
[339359922,1727471470175,-709.61,0.00024657,2]
[339359923,1727471470186,-6692.1,0.00024657,2]
[339359924,1727471470196,-200.0,0.00024658,15]
[339359925,1727471470207,-660.0,0.00024658,2]
[339359926,1727471470216,-380.0,0.00024658,2]
[339359927,1727471470226,-223.665921,0.00024658,7]
[339359928,1727471470236,-223.665921,0.00024658,7]
[339359929,1727471470246,-223.665921,0.00024658,7]
[339359930,1727471470256,-223.665921,0.00024658,7]
[339359931,1727471470267,-223.665921,0.00024658,7]
[339359932,1727471470279,-223.665921,0.00024658,7]
[339359933,1727471470292,-223.665921,0.00024658,7]
[339359934,1727471470304,-223.665921,0.00024658,7]
[339359935,1727471470313,-223.665921,0.00024658,7]
[339359936,1727471470325,-223.665921,0.00024658,7]
[339359937,1727471470337,-223.665921,0.00024658,7]
[339359938,1727471470347,-223.665921,0.00024658,7]
[339359939,1727471470358,-223.665921,0.00024658,7]
[339359940,1727471470368,-223.665921,0.00024658,7]
[339359941,1727471470378,-223.665921,0.00024658,7]
[339359942,1727471470388,-223.665921,0.00024658,7]
[339359943,1727471470397,-223.665921,0.00024658,7]
[339359944,1727471470408,-223.665921,0.00024658,7]
[339359945,1727471470420,-223.665921,0.00024658,7]
[339359946,1727471470431,-223.665929,0.00024658,7]
[339359947,1727471470444,-1070.911271,0.00024709,2]
[339359948,1727471470454,-204.536795,0.00024709,2]
[339359949,1727471470465,-1369.052354,0.00024709,2]
[339359950,1727471470475,-204.036163,0.00024709,2]
[339359951,1727471470485,-186.269897,0.00024709,2]
[339359952,1727471470496,-202.019211,0.00024709,2]
[339359953,1727471470507,-535.455635,0.00024709,2]
[339359954,1727471470516,-1369.052354,0.00024709,2]
[339359955,1727471470527,-204.370776,0.00024709,2]
[339359956,1727471470537,-535.455636,0.00024709,2]
[339359957,1727471470547,-165.539165,0.00024709,2]
[339359958,1727471470556,-684.526177,0.00024709,2]
[339359959,1727471470566,-535.455636,0.00024709,2]
[339359960,1727471470576,-164.685227,0.00024709,2]
[339359961,1727471470586,-160.0,0.000248,6]
[339359962,1727471470595,-160.0,0.000248,5]
[339359963,1727471470605,-209.1919512,0.00024861,2]
[339359964,1727471470688,-209.1919512,0.00024861,2]
[339359965,1727471470699,-45489.39611874,0.000249,2]
[339359966,1727471470708,-621.05,0.000249,31]
[339359967,1727471470717,-621.05,0.000249,31]
[339359968,1727471470727,-621.05,0.000249,31]
[339359969,1727471470737,-621.05,0.000249,31]
[339359970,1727471470747,-621.05,0.000249,31]
[339359971,1727471470757,-621.05,0.000249,31]
[339359972,1727471470767,-621.05,0.000249,31]
[339359973,1727471470777,-621.05,0.000249,31]
[339359974,1727471470787,-621.05,0.000249,31]
[339359975,1727471470796,-621.05,0.000249,31]
[339359976,1727471470806,-621.05,0.000249,31]
[339359977,1727471470815,-621.05,0.000249,31]
[339359978,1727471470824,-621.05,0.000249,31]
[339359979,1727471470833,-621.05,0.000249,31]
[339359980,1727471470842,-621.05,0.000249,31]
[339359981,1727471470852,-621.05,0.000249,31]
[339359982,1727471470863,-500.0,0.00024931,2]
[339359983,1727471470874,-615.87,0.00024931,2]
[339359984,1727471470885,-500.0,0.00024931,2]
[339359985,1727471470894,-500.0,0.00024931,2]
[339359986,1727471470903,-500.0,0.00024931,2]
[339359987,1727471470913,-571.88,0.00024931,2]
[339359988,1727471470923,-579.52,0.00024931,2]
[339359989,1727471470933,-646.25,0.00024931,2]
[339359990,1727471470943,-816.38,0.00024931,2]
[339359991,1727471470953,-1558.73,0.00024931,2]
[339359992,1727471470964,-709.61,0.00024931,2]
[339359993,1727471470974,-6692.1,0.00024931,2]
[339359994,1727471470984,-547.7,0.00025,31]
[339359995,1727471470994,-435027.77373952,0.00025,2]
[339359996,1727471471006,-75644.2318635,0.00025,2]
[339359997,1727471471015,-300.0,0.00025,2]
[339359998,1727471471024,-300.0,0.00025,2]
[339359999,1727471471034,-300.0,0.00025,2]
[339360000,1727471471044,-300.0,0.00025,2]
[339360001,1727471471055,-300.0,0.00025,2]
[339360002,1727471471068,-300.0,0.00025,2]
[339360003,1727471471077,-1112.46278608,0.00025,120]
[339360004,1727471471087,-300.0,0.00025,2]
[339360005,1727471471097,-18002.967667,0.00025,2]
[339360006,1727471471106,-300.0,0.00025,2]
[339360007,1727471471117,-300.0,0.00025,2]
[339360008,1727471471127,-300.0,0.00025,2]
[339360009,1727471471138,-300.0,0.00025,2]
[339360010,1727471471149,-300.0,0.00025,2]
[339360011,1727471471159,-1015.0,0.00025,4]
[339360012,1727471471170,-349.2270533,0.00025,120]
[339360013,1727471471181,-300.0,0.00025,2]
[339360014,1727471471192,-2000.0,0.00025,120]
[339360015,1727471471202,-2000.0,0.00025,120]
[339360016,1727471471211,-300.0,0.00025,2]
[339360017,1727471471221,-300.0,0.00025,2]
[339360018,1727471471231,-250.0,0.00025,2]
[339360019,1727471471242,-56588.46278937,0.00025,2]
[339360020,1727471471253,-202.19557622,0.00025,2]
[339360021,1727471471264,-10364.0,0.00025,2]
[339360022,1727471471274,-344.58022096,0.00025,2]
[339360023,1727471471285,-822.74792005,0.00025,2]
[339360024,1727471471294,-1000.0,0.00025,120]
[339360025,1727471471304,-246.5,0.00025,2]
[339360026,1727471471314,-246.5,0.00025,2]
[339360027,1727471471323,-246.5,0.00025,2]
[339360028,1727471471332,-178.8263784,0.00025,120]
[339360029,1727471471342,-300.0,0.00025,2]
[339360030,1727471471351,-300.0,0.00025,2]
[339360031,1727471471360,-400.0,0.00025,60]
[339360032,1727471471370,-1500.0,0.00025,21]
[339360033,1727471471380,-12997.34,0.00025,14]
[339360034,1727471471389,-5761.2,0.00025,14]
[339360035,1727471471399,-427.52,0.00025,14]
[339360036,1727471471409,-300.0,0.00025,2]
[339360037,1727471471419,-300.0,0.00025,2]
[339360038,1727471471431,-300.0,0.00025,2]
[339360039,1727471471440,-300.0,0.00025,2]
[339360040,1727471471451,-172.0,0.00025,2]
[339360041,1727471471461,-300.0,0.00025,2]
[339360042,1727471471473,-300.0,0.00025,2]
[339360043,1727471471483,-300.0,0.00025,2]
[339360044,1727471471493,-300.0,0.00025,2]
[339360045,1727471471503,-300.0,0.00025,2]
[339360046,1727471471514,-1034.10460256,0.00025,2]
[339360047,1727471471525,-255319.19245841,0.00025,2]
[339360048,1727471471535,-164.52367725,0.00025,2]
[339360049,1727471471546,-13294.799999,0.00025,7]
[339360050,1727471471556,-469.02857008,0.00025,60]
[339360051,1727471471566,-955.46,0.00025,45]
[339360052,1727471471577,-500.0,0.00025,2]
[339360053,1727471471588,-960.0,0.00025,7]
[339360054,1727471471598,-3000.0,0.00025,7]
[339360055,1727471471608,-526.18084483,0.00025,2]
[339360056,1727471471619,-250.0,0.00025,7]
[339360057,1727471471629,-127784.13985986,0.00025,2]
[339360058,1727471471639,-1000.0,0.00025,7]
[339360059,1727471471649,-13294.8,0.00025,4]
[339360060,1727471471659,-13294.8,0.00025,5]
[339360061,1727471471670,-13294.8,0.00025,6]
[339360062,1727471471681,-1300.0,0.00025,15]
[339360063,1727471471692,-150.0,0.00025,2]
[339360064,1727471471702,-1000.0,0.00025,2]
[339360065,1727471471713,-1000.0,0.00025,2]
[339360066,1727471471724,-1000.0,0.00025,2]
[339360067,1727471471735,-1000.0,0.00025,2]
[339360068,1727471471745,-1000.0,0.00025,2]
[339360069,1727471471755,-1000.0,0.00025,2]
[339360070,1727471471765,-1000.0,0.00025,2]
[339360071,1727471471775,-335.89110331,0.00025,2]
[339360072,1727471471787,-306.0,0.00025,2]
[339360073,1727471471798,-283.6,0.00025,2]
[339360074,1727471471810,-3596.3651549,0.00025033,2]
[339360075,1727471471819,-314693.64881417,0.0002509,2]
[339360076,1727471471828,-157.89147248,0.000251,10]
[339360077,1727471471838,-500.0,0.00025119,2]
[339360078,1727471471848,-332.41003937,0.00025205,2]
[339360079,1727471471858,-615.87,0.00025205,2]
[339360080,1727471471867,-457.48254055,0.00025205,2]
[339360081,1727471471878,-500.0,0.00025205,2]
[339360082,1727471471888,-362.54035857,0.00025205,2]
[339360083,1727471471898,-571.88,0.00025205,2]
[339360084,1727471471908,-579.52,0.00025205,2]
[339360085,1727471471919,-646.25,0.00025205,2]
[339360086,1727471471930,-816.38,0.00025205,2]
[339360087,1727471471941,-1558.73,0.00025205,2]
[339360088,1727471471951,-709.61,0.00025205,2]
[339360089,1727471471962,-6692.1,0.00025205,2]
[339360090,1727471471976,-621.05,0.000253,31]
[339360091,1727471471987,-621.05,0.000253,31]
[339360092,1727471471996,-621.05,0.000253,31]
[339360093,1727471472006,-621.05,0.000253,31]
[339360094,1727471472015,-621.05,0.000253,31]
[339360095,1727471472024,-621.05,0.000253,31]
[339360096,1727471472033,-621.05,0.000253,31]
[339360097,1727471472116,-621.05,0.000253,31]
[339360098,1727471472126,-621.05,0.000253,31]
[339360099,1727471472137,-621.05,0.000253,31]
[339360100,1727471472148,-621.05,0.000253,31]
[339360101,1727471472159,-621.05,0.000253,31]
[339360102,1727471472168,-621.05,0.000253,31]
[339360103,1727471472180,-621.05,0.000253,31]
[339360104,1727471472192,-621.05,0.000253,31]
[339360105,1727471472203,-621.05,0.000253,31]
[339360106,1727471472213,-621.05,0.000253,31]
[339360107,1727471472223,-621.05,0.000253,31]
[339360108,1727471472234,-621.05,0.000253,31]
[339360109,1727471472243,-621.05,0.000253,31]
[339360110,1727471472253,-621.05,0.000253,31]
[339360111,1727471472264,-621.05,0.000253,31]
[339360112,1727471472274,-621.05,0.000253,31]
[339360113,1727471472286,-621.05,0.000253,31]
[339360114,1727471472297,-280.0,0.000253,10]
[339360115,1727471472307,-900.0,0.00025469,3]
[339360116,1727471472316,-616.01,0.00025479,2]
[339360117,1727471472327,-450.32576555,0.00025479,2]
[339360118,1727471472336,-572.00887815,0.00025479,2]
[339360119,1727471472349,-579.52334783,0.00025479,2]
[339360120,1727471472358,-646.26276711,0.00025479,2]
[339360121,1727471472368,-816.48097755,0.00025479,2]
[339360122,1727471472379,-1558.76985216,0.00025479,2]
[339360123,1727471472389,-709.84944176,0.00025479,2]
[339360124,1727471472399,-6692.31179468,0.00025479,2]
[339360125,1727471472409,-159.0,0.0002556,2]
[339360126,1727471472420,-3242.29077255,0.00025564,2]
[339360127,1727471472430,-194.0,0.0002563,13]
[339360128,1727471472440,-306.0,0.00025646,2]